bitfinex/quotes_ETHUSD_20250112
["timestamp","ask_amount","ask_price","bid_price","bid_amount"]
[1736717750315,0.7533,3279.4,3278.6,2.13503]
[1736717750686,0.7533,3279.4,3278.7,0.08306552]
[1736717759512,0.7876,3278.9,3278.7,0.08306552]
[1736717759714,2.13492,3278.8,3278.7,0.08306552]
[1736717759919,2.13492,3278.8,3277.8,2.92715]
[1736717759920,0.015,3278.7,3277.8,2.92715]
[1736717760087,0.015,3278.7,3277.8,0.7916]
[1736717760417,0.7876,3278.3,3277.9,0.08293006]
[1736717760609,0.7876,3278.3,3277.5,12.44434215]
[1736717760818,0.7876,3278.3,3277.6,1.86536427]
[1736717761021,0.015,3278.2,3277.6,0.08293006]
[1736717761170,0.7876,3278.3,3277.6,2.1357]
[1736717761374,0.7876,3278.3,3277.7,0.87453006]
[1736717761668,0.7876,3278.3,3277.7,0.08293006]
[1736717767231,0.7876,3278.3,3277.4,8.30742]
[1736717767388,0.7876,3278.3,3277.5,2.21522572]
[1736717768427,0.015,3278.2,3277.5,0.07946572]
[1736717768745,0.7673,3278.1,3277.5,0.07946572]
[1736717769754,2.90268,3278.1,3277.5,0.07946572]
[1736717770253,3.194448,3278.1,3277.5,0.07946572]
[1736717770760,2.13546,3278.0,3277.5,0.07946572]
[1736717770932,5.46033014,3277.8,3277.5,0.07946572]
[1736717771128,5.46033014,3277.8,3276.9,0.831]
[1736717771333,0.2345,3277.7,3277.6,0.08039826]
[1736717771643,0.80398301,3277.7,3276.9,0.831]
[1736717771830,0.80398301,3277.7,3277.0,0.08039826]
[1736717772040,2.13571,3277.6,3277.0,0.08039826]
[1736717772238,0.80398301,3277.7,3277.0,0.08039826]
[1736717773445,0.227,3277.7,3277.0,0.08039826]
[1736717773654,0.212,3277.7,3277.0,2.21646826]
[1736717774019,0.212,3277.7,3277.0,0.08039826]
[1736717774369,0.015,3277.6,3277.0,0.08039826]
[1736717774664,2.15071,3277.6,3276.7,0.7928]
[1736717774960,2.15071,3277.6,3276.8,0.08039826]
[1736717775265,2.71945601,3277.6,3276.8,0.08039826]
[1736717777763,0.015,3277.4,3276.8,0.08039826]
[1736717778521,2.15088,3277.4,3276.8,0.08039826]
[1736717782456,0.7904,3277.5,3276.8,0.08039826]
[1736717782654,0.212,3277.7,3276.9,0.7895]
[1736717782968,0.015,3277.6,3276.9,1.09316252]
[1736717783270,0.015,3277.6,3277.0,0.08039826]
[1736717783574,0.0075,3277.5,3277.0,0.08039826]
[1736717783744,0.015,3277.3,3277.0,0.08039826]
[1736717784070,0.0075,3277.2,3277.1,0.08087676]
[1736717784273,0.015,3277.1,3276.4,0.7895]
[1736717784614,0.015,3277.1,3276.5,0.08087676]
[1736717784758,0.7648,3276.7,3276.5,0.08087676]
[1736717785257,0.7798,3276.7,3276.6,0.08087676]
[1736717785451,0.7798,3276.7,3276.1,0.7895]
[1736717785657,0.7798,3276.7,3276.2,0.08087676]
[1736717786141,0.015,3276.6,3276.2,0.08087676]
[1736717786477,0.327805,3276.6,3276.2,0.08087676]
[1736717786676,0.015,3276.4,3275.7,0.7822]
[1736717787183,0.7648,3276.7,3275.9,2.91896]
[1736717787329,0.015,3276.6,3275.9,0.7822]
[1736717787668,0.015,3276.6,3276.0,0.08087676]
[1736717789063,2.15136,3276.6,3276.0,0.08087676]
[1736717789233,0.291616,3276.5,3276.0,0.08087676]
[1736717790174,0.015,3276.4,3276.0,0.08087676]
[1736717790345,0.015,3276.2,3276.0,0.08087676]
[1736717790553,0.015,3276.2,3275.6,0.7822]
[1736717791179,0.015,3276.2,3275.7,0.08087676]
[1736717791471,0.308611,3276.2,3275.7,0.08087676]
[1736717792281,0.015,3276.0,3275.7,0.08087676]
[1736717792479,2.15175,3276.0,3275.2,5.38]
[1736717792823,2.15175,3276.0,3275.3,0.08306969]
[1736717793118,2.36375,3276.0,3275.3,0.08306969]
[1736717793319,0.314825,3275.9,3275.3,0.08306969]
[1736717793626,0.0225,3275.9,3275.4,0.08306969]
[1736717793920,0.0225,3275.9,3275.0,2.1374]
[1736717794324,0.0225,3275.9,3275.1,0.08406709]
[1736717795181,0.015,3275.9,3275.2,0.8245]
[1736717795578,0.8191,3276.4,3275.6,0.8245]
[1736717795777,0.8191,3276.4,3275.7,0.08433049]
[1736717795778,0.8191,3276.3,3275.7,0.08433049]
[1736717795999,0.015,3276.2,3275.7,0.08433049]
[1736717796224,2.15163,3276.2,3275.3,0.8245]
[1736717796443,2.13669,3276.1,3275.4,0.08433848]
[1736717797161,0.015,3276.2,3275.4,0.08433848]
[1736717798328,0.015,3276.2,3275.4,1.28094233]
[1736717799045,3.015,3276.2,3275.4,1.28094233]
[1736717799246,3.015,3276.2,3275.4,0.08433848]
[1736717800965,5.15167,3276.2,3275.4,0.08433848]
[1736717801134,0.0075,3276.1,3275.4,0.08433848]
[1736717801330,0.7614,3275.9,3275.4,0.08433848]
[1736717801645,0.015,3275.8,3275.4,0.08433848]
[1736717801842,2.15189,3275.8,3275.0,6.1808]
[1736717802028,0.015,3275.6,3275.1,0.08462588]
[1736717802933,5.56885014,3275.7,3275.1,0.08462588]
[1736717803137,2.15212,3275.5,3275.1,0.08462588]
[1736717803464,2.13717,3275.4,3275.2,0.08472968]
[1736717803666,2.13717,3275.4,3274.5,0.8008]
[1736717803818,0.7614,3275.1,3274.6,0.08472968]
[1736717804563,0.015,3275.0,3274.6,0.08472968]
[1736717804769,2.36545,3275.0,3274.6,0.08472968]
[1736717804968,0.015,3274.8,3274.1,6.1808]
[1736717805168,1.3947,3274.8,3274.7,0.08528855]
[1736717805336,1.3947,3274.8,3273.1,0.005]
[1736717805337,0.8222,3273.9,3273.1,0.005]
[1736717805535,0.015,3274.0,3273.4,2.13842]
[1736717805536,0.213,3274.0,3273.4,2.13842]
[1736717805741,0.213,3274.0,3273.2,3.02995152]
[1736717806047,0.213,3274.0,3273.2,2.94726]
[1736717806252,0.213,3274.0,3273.3,0.08089503]
[1736717806467,0.213,3274.0,3273.3,2.52270053]
[1736717807938,0.213,3274.0,3273.3,0.38421053]
[1736717808137,0.213,3274.0,3273.3,0.08089503]
[1736717808724,0.213,3274.0,3273.3,2.21938503]
[1736717809639,0.213,3274.0,3273.3,0.08089503]
[1736717809840,0.213,3274.0,3273.4,2.13842]
[1736717810043,0.213,3274.0,3273.5,0.08255722]
[1736717811484,0.213,3274.0,3273.3,2.13847]
[1736717811799,0.213,3274.0,3273.4,0.08259719]
[1736717812088,0.015,3273.9,3273.4,0.08259719]
[1736717815068,0.0075,3273.8,3273.1,0.005]
[1736717815272,0.0225,3273.6,3273.2,0.08266115]
[1736717816170,0.5725,3273.6,3273.2,0.08266115]
[1736717816783,0.015,3273.4,3273.2,0.08266115]
[1736717817095,0.015,3273.4,3273.3,0.08266115]
[1736717817297,0.0075,3273.3,3273.1,0.005]
[1736717817450,0.0075,3273.3,3273.2,0.0835007]
[1736717817650,0.0075,3273.3,3273.1,0.005]
[1736717817997,0.8068,3273.4,3273.1,0.005]
[1736717818204,0.03116321,3273.3,3272.9,2.13877]
[1736717818404,0.05366321,3273.6,3272.9,2.13877]
[1736717818559,0.38454632,3273.5,3273.0,0.0835007]
[1736717818759,0.03116321,3273.4,3272.4,0.8123]
[1736717819268,0.03116321,3273.4,3272.8,2.13882]
[1736717819714,0.03116321,3273.4,3272.9,0.0835007]
[1736717820056,0.03116321,3273.4,3272.9,2.13876]
[1736717820257,0.03116321,3273.4,3273.0,0.0835007]
[1736717820574,0.03116321,3273.5,3273.0,0.0835007]
[1736717820975,0.03116321,3273.5,3272.9,2.13876]
[1736717821289,0.03116321,3273.5,3272.6,2.13893]
[1736717821489,0.03116321,3273.5,3272.4,0.8123]
[1736717821490,0.31967232,3273.5,3272.7,2.2224007]
[1736717821789,0.03116321,3273.4,3272.7,2.2224007]
[1736717822713,0.03116321,3273.4,3272.7,0.0835007]
[1736717822893,0.03116321,3273.4,3272.8,2.13883]
[1736717823224,0.03116321,3273.4,3272.9,0.0835007]
[1736717823590,0.05366321,3273.6,3272.9,0.0835007]
[1736717823786,0.45950953,3273.6,3272.9,0.0835007]
[1736717824324,0.45950953,3273.6,3272.9,2.2222407]
[1736717824472,0.03116321,3273.6,3273.1,2.13864]
[1736717824675,0.03116321,3273.6,3273.0,0.8328]
[1736717824676,0.03116321,3273.6,3273.2,2.13856]
[1736717824984,0.03116321,3274.2,3273.5,2.13834]
[1736717825187,0.03116321,3274.2,3273.3,0.08367665]
[1736717825514,0.03116321,3274.2,3272.7,4.68520014]
[1736717825515,0.0075,3273.8,3273.4,0.08367665]
[1736717825690,0.015,3273.7,3272.9,2.97157]
[1736717826036,0.015,3273.7,3273.0,2.22227866]
[1736717826205,0.015,3273.7,3273.0,0.08362866]
[1736717826372,0.03116321,3273.8,3273.4,2.13841]
[1736717826572,0.03116321,3274.0,3273.4,2.13841]
[1736717826766,0.03116321,3274.0,3273.5,0.08332478]
[1736717827292,0.03116321,3274.0,3273.2,2.13856]
[1736717827486,0.03116321,3274.0,3273.3,0.08332478]
[1736717827911,0.0075,3273.7,3273.3,0.08332478]
[1736717828116,0.0075,3273.5,3272.5,0.8281]
[1736717828314,0.0075,3273.5,3272.6,0.08322882]
[1736717828315,0.5725,3273.3,3272.6,0.08322882]
[1736717828490,0.015,3273.1,3272.2,2.96731]
[1736717828818,0.015,3273.1,3272.4,2.13909]
[1736717829122,0.24416321,3273.2,3272.6,2.13896]
[1736717829324,0.24416321,3273.2,3272.7,2.22227276]
[1736717829621,0.015,3273.1,3272.7,0.08337276]
[1736717829971,0.015,3273.1,3272.5,2.139]
[1736717830197,0.24416321,3273.2,3272.8,0.08337276]
[1736717830417,0.03116321,3273.2,3272.8,2.13883]
[1736717830569,0.03116321,3273.3,3272.9,0.08337276]
[1736717832889,0.24816321,3273.6,3273.1,2.13859]
[1736717833272,0.24816321,3273.6,3273.2,0.08353272]
[1736717833968,0.24816321,3273.6,3272.8,0.8281]
[1736717833969,0.24816321,3273.6,3273.0,2.1387]
[1736717834215,0.24816321,3273.6,3273.3,0.08353272]
[1736717834370,0.24816321,3273.6,3273.0,2.1387]
[1736717834573,0.24816321,3273.6,3273.4,0.08353272]
[1736717834773,0.24816321,3273.6,3273.0,2.1387]
[1736717835012,0.24816321,3273.6,3273.5,0.08353272]
[1736717835176,0.24816321,3273.6,3273.0,2.1387]
[1736717835719,0.24816321,3273.6,3273.1,0.08353272]
[1736717835904,0.24816321,3273.6,3272.6,2.13893]
[1736717835905,0.24816321,3273.6,3272.8,2.13881]
[1736717836084,0.24816321,3273.6,3272.9,0.08337276]
[1736717836803,0.24816321,3273.6,3272.9,2.22214276]
[1736717839826,0.015,3273.5,3272.9,0.08337276]
[1736717839988,0.015,3273.3,3272.9,0.08337276]
[1736717840175,0.0075,3273.2,3272.2,2.13919]
[1736717840380,0.0075,3273.2,3273.0,0.08353269]
[1736717840608,0.0075,3273.2,3272.2,2.13919]
[1736717840916,0.0075,3273.2,3272.3,0.08353269]
[1736717841220,0.015,3273.0,3272.3,2.22267269]
[1736717841519,0.04616321,3273.0,3272.3,2.22267269]
[1736717843899,0.04616321,3273.0,3272.3,0.08353269]
[1736717844080,0.04616321,3273.0,3272.5,2.13902]
[1736717844287,0.015,3273.1,3272.6,0.08379663]
[1736717844685,0.015,3273.1,3272.3,2.13915]
[1736717844992,0.015,3273.1,3272.4,0.08379663]
[1736717845175,0.23421832,3273.1,3272.4,0.08379663]
[1736717845521,0.015,3272.9,3272.4,0.08379663]
[1736717845723,0.015,3272.9,3272.3,2.13915]
[1736717845933,0.015,3272.9,3272.4,0.08379663]
[1736717846231,0.015,3272.9,3272.3,2.13915]
[1736717846396,0.015,3272.9,3272.5,0.08379663]
[1736717846592,0.015,3272.9,3272.3,2.13915]
[1736717846832,0.015,3272.9,3272.6,0.08379663]
[1736717847225,0.015,3272.9,3272.3,2.13915]
[1736717847428,0.015,3272.9,3272.7,0.08379663]
[1736717847731,0.03116321,3273.0,3272.8,0.08379663]
[1736717847895,0.217,3273.2,3272.8,0.08379663]
[1736717848081,0.015,3273.1,3272.6,2.13891]
[1736717848286,0.04616321,3273.1,3272.9,0.08379663]
[1736717848487,0.04616321,3273.1,3272.6,2.13891]
[1736717848814,0.04616321,3273.1,3272.7,0.08379663]
[1736717849403,0.03116321,3273.1,3272.7,0.08379663]
[1736717849734,0.03116321,3273.5,3273.2,2.13857]
[1736717849882,0.217,3273.8,3273.2,2.13857]
[1736717850082,0.217,3273.8,3273.3,0.08373264]
[1736717850297,0.015,3273.7,3273.2,2.13857]
[1736717850534,0.04616321,3273.7,3273.2,2.13857]
[1736717850830,0.04616321,3273.7,3273.3,2.22221065]
[1736717852749,0.04616321,3273.7,3273.3,0.08370065]
[1736717852934,0.04616321,3273.7,3273.1,2.13862]
[1736717853134,0.04616321,3273.7,3273.2,0.08332477]
[1736717854372,0.04616321,3273.7,3273.2,2.22187477]
[1736717859998,0.04616321,3273.7,3273.2,0.08332477]
[1736717860201,0.0075,3273.6,3273.2,0.08332477]
[1736717860501,0.0075,3273.2,3272.2,2.13921]
[1736717860684,0.015,3273.1,3272.2,2.13921]
[1736717860885,0.23422032,3273.1,3272.4,2.13908]
[1736717861094,0.015,3272.9,3272.4,2.13908]
[1736717861961,0.015,3273.1,3272.4,2.13908]
[1736717863514,0.03116321,3273.2,3272.1,3.18091936]
[1736717863802,0.0225,3273.6,3272.7,2.13889]
[1736717864006,0.0225,3273.4,3272.7,2.13889]
[1736717864194,0.54286632,3273.4,3272.7,2.13889]
[1736717864400,0.015,3273.2,3272.7,2.13889]
[1736717865402,0.015,3273.2,3272.5,2.13902]
[1736717869708,0.0075,3273.1,3272.3,2.13911]
[1736717869898,0.015,3273.0,3272.3,2.13911]
[1736717871413,0.015,3273.0,3272.3,2.41342237]
[1736717872081,0.015,3273.0,3272.3,0.27431237]
[1736717872281,0.015,3273.0,3272.4,2.1391]
[1736717873075,0.015,3273.0,3272.5,0.08391658]
[1736717875674,0.015,3273.0,3272.5,2.22292658]
[1736717876169,0.03116321,3273.3,3272.7,2.13889]
[1736717876574,0.015,3273.2,3272.8,0.08391658]
[1736717882652,2.16877,3272.9,3272.8,0.08391658]
[1736717882943,3.23201332,3272.9,3272.8,0.08391658]
[1736717883144,3.23201332,3272.9,3271.5,2.54635014]
[1736717883145,0.57440653,3272.9,3271.8,2.13949]
[1736717883360,0.55940653,3272.9,3271.6,0.0305611]
[1736717883519,0.76690653,3272.9,3271.9,0.07201807]
[1736717883846,0.24616321,3273.1,3272.3,2.13915]
[1736717884546,0.03116321,3273.4,3272.4,2.64892398]
[1736717884718,0.5725,3273.6,3272.4,2.21111807]
[1736717884912,0.015,3273.3,3272.4,0.07201807]
[1736717885099,0.215347,3273.2,3272.4,0.07201807]
[1736717885301,0.03116321,3273.1,3272.2,3.0]
[1736717885541,0.015,3273.0,3272.5,0.07201807]
[1736717885743,0.015,3273.0,3272.3,2.13914]
[1736717885947,0.015,3273.0,3272.6,0.07201807]
[1736717886145,0.015,3273.0,3272.3,2.13914]
[1736717886305,0.015,3273.0,3272.7,0.07201807]
[1736717886642,0.015,3273.0,3272.8,0.07201807]
[1736717887049,0.03116321,3273.1,3272.4,2.13909]
[1736717887350,0.015,3273.3,3272.9,0.07201807]
[1736717887519,0.04616321,3273.3,3272.4,0.03055536]
[1736717887850,0.04616321,3273.3,3272.5,0.07201807]
[1736717888251,0.7735,3273.2,3272.5,0.07201807]
[1736717888548,0.03116321,3273.1,3272.5,0.07201807]
[1736717891673,0.03116321,3273.1,3272.5,0.37192788]
[1736717891841,0.7735,3273.5,3273.0,2.1387]
[1736717892167,0.7735,3273.5,3273.1,0.0721459]
[1736717896677,0.7735,3273.5,3272.8,2.74331774]
[1736717896897,0.7735,3273.5,3273.2,0.07197814]
[1736717897028,0.7735,3273.5,3272.8,2.74331774]
[1736717897230,0.7735,3273.5,3273.3,0.07197814]
[1736717897534,0.7735,3273.5,3272.8,2.74331774]
[1736717897686,0.7735,3273.5,3273.4,0.07197814]
[1736717897896,0.7735,3273.5,3272.8,2.74331774]
[1736717898190,0.7735,3273.5,3272.7,0.771]
[1736717898191,0.03116321,3273.4,3272.7,0.771]
[1736717898338,0.03116321,3273.4,3272.8,0.07197814]
[1736717898339,0.8271,3273.2,3272.8,0.07197814]
[1736717898544,0.03116321,3273.1,3272.5,3.0]
[1736717898745,0.03116321,3273.1,3272.6,0.07197814]
[1736717898945,0.8271,3273.0,3272.6,0.07197814]
[1736717899197,0.8271,3273.0,3272.3,2.13916]
[1736717899198,0.03116321,3272.9,3272.3,2.13916]
[1736717899394,0.03116321,3272.9,3272.4,0.07197814]
[1736717899594,0.03116321,3272.9,3272.3,2.73935337]
[1736717899747,0.8271,3273.0,3272.4,2.24160347]
[1736717900161,0.8271,3273.0,3272.5,0.771]
[1736717900571,0.8271,3273.0,3272.6,0.07197814]
[1736717901148,0.85826321,3273.2,3272.6,0.07197814]
[1736717901562,0.03116321,3273.3,3272.8,2.13883]
[1736717901796,0.8271,3273.4,3272.8,2.36296628]
[1736717901999,0.03116321,3273.3,3272.9,0.07197814]
[1736717902301,0.8271,3273.4,3272.9,0.07197814]
[1736717906290,0.8271,3273.4,3272.6,2.13894]
[1736717906450,0.8271,3273.4,3273.0,0.07197814]
[1736717906647,0.85826321,3273.7,3273.1,0.771]
[1736717906890,0.8271,3273.7,3273.2,0.03054922]
[1736717907097,0.03116321,3273.6,3273.1,0.07197814]
[1736717907258,0.03116321,3273.6,3273.3,0.07203406]
[1736717907458,0.03116321,3273.6,3272.9,2.13877]
[1736717907672,0.03116321,3273.6,3273.4,0.07203406]
[1736717907873,0.03116321,3273.6,3272.9,2.13877]
[1736717908089,0.03116321,3273.6,3273.5,0.07203406]
[1736717908269,0.03116321,3273.6,3272.9,2.13877]
[1736717908890,0.03116321,3273.6,3273.0,0.07203406]
[1736717911302,0.8271,3273.7,3273.0,0.07203406]
[1736717911795,0.8271,3273.7,3273.1,0.03055004]
[1736717911952,0.8271,3273.7,3273.0,0.07203406]
[1736717911953,0.03116321,3273.6,3273.0,0.771]
[1736717912153,0.03116321,3273.6,3273.1,0.07203406]
[1736717912776,0.03116321,3273.6,3272.7,2.90987]
[1736717912777,0.8271,3273.3,3272.6,0.62480686]
[1736717912979,0.04616321,3273.2,3272.7,0.07194618]
[1736717913303,0.04616321,3273.2,3272.5,2.13897]
[1736717913481,0.04616321,3273.2,3272.8,0.07194618]
[1736717913686,0.04616321,3273.2,3272.5,2.13897]
[1736717913887,0.04616321,3273.2,3272.9,0.07194618]
[1736717914082,0.04616321,3273.2,3272.5,2.13897]
[1736717914296,0.04616321,3273.2,3273.0,0.07194618]
[1736717914597,0.34733453,3273.2,3272.5,2.13897]
[1736717915198,0.34733453,3273.2,3272.6,0.07194618]
[1736717916879,0.34733453,3273.2,3272.6,2.21090618]
[1736717917113,0.04616321,3273.2,3272.6,2.21090618]
[1736717918425,0.04616321,3273.2,3272.6,0.07194618]
[1736717921228,0.03116321,3273.2,3272.6,0.07194618]
[1736717921530,0.8271,3273.3,3272.7,0.8096]
[1736717921831,0.8271,3273.3,3272.9,2.13876]
[1736717922429,0.8271,3273.3,3273.0,0.07222582]
[1736717925499,0.7807,3273.6,3273.0,0.07222582]
[1736717925697,0.7807,3273.6,3273.1,2.13862]
[1736717925927,0.03116321,3273.5,3273.1,2.13862]
[1736717926149,0.03116321,3273.5,3273.2,0.07214593]
[1736717926839,0.7807,3273.6,3273.2,0.07214593]
[1736717927308,0.03116321,3273.5,3273.2,0.07214593]
[1736717927743,0.03116321,3273.5,3272.9,2.13874]
[1736717927943,0.7957,3273.4,3273.3,0.07214593]
[1736717928146,0.7957,3273.4,3272.5,2.13898]
[1736717928369,0.03116321,3273.3,3272.5,2.13898]
[1736717928573,0.03116321,3273.3,3272.6,0.07185831]
[1736717928874,0.7807,3273.2,3272.6,0.07185831]
[1736717929027,0.7807,3273.2,3272.6,2.21080831]
[1736717930179,0.7807,3273.2,3272.6,2.24136126]
[1736717930349,0.7807,3273.2,3272.6,2.21080831]
[1736717930554,0.7807,3273.2,3272.6,2.24136141]
[1736717930749,0.7807,3273.2,3272.6,2.21080831]
[1736717934204,0.7807,3273.2,3272.6,2.24136128]
[1736717934386,0.7807,3273.2,3272.6,2.21080831]
[1736717934589,0.7807,3273.2,3272.6,2.24136126]
[1736717934787,0.03116321,3273.1,3272.6,0.07185831]
[1736717934994,0.7641,3273.0,3272.3,2.13913]
[1736717935212,0.7641,3273.0,3272.1,0.7647]
[1736717935213,0.7641,3273.0,3272.4,2.1391]
[1736717935410,0.7641,3273.3,3272.9,2.13877]
[1736717935731,0.7641,3273.3,3273.0,0.06953195]
[1736717936323,0.015,3273.0,3272.3,0.60551542]
[1736717936624,0.7791,3272.9,3272.0,2.13934]
[1736717936791,0.7641,3272.5,3271.5,0.7647]
[1736717937002,0.04616321,3272.4,3271.6,0.06975545]
[1736717937209,0.04616321,3272.4,3271.6,0.67331266]
[1736717937615,0.04616321,3272.4,3271.7,2.13955]
[1736717937992,0.7641,3272.3,3271.8,0.06975545]
[1736717938198,0.32609953,3272.2,3271.3,0.62381245]
[1736717938377,0.03116321,3272.2,3271.4,2.20946545]
[1736717939215,0.7791,3271.9,3271.4,0.06975545]
[1736717939380,0.03116321,3271.8,3271.1,2.90464]
[1736717939899,0.03116321,3271.8,3271.2,0.06975545]
[1736717941627,0.7791,3271.7,3271.2,0.06975545]
[1736717941830,0.03116321,3271.6,3271.0,2.7414576]
[1736717941985,0.7641,3271.7,3271.1,2.48689813]
[1736717942323,0.7641,3271.7,3271.1,0.34695813]
[1736717942499,0.7641,3271.7,3271.2,2.13987]
[1736717942953,0.7641,3271.7,3271.3,0.07048211]
[1736717943388,0.7641,3271.7,3271.2,2.13987]
[1736717943586,0.7641,3271.7,3271.4,0.07048211]
[1736717943759,0.7641,3271.7,3271.2,2.13987]
[1736717943958,0.7641,3271.7,3271.5,0.07047413]
[1736717944160,0.7641,3271.7,3271.2,2.13987]
[1736717944357,0.7641,3271.7,3271.6,0.07047413]
[1736717944559,0.7641,3271.7,3271.4,2.13975]
[1736717944765,0.7641,3271.7,3271.6,0.07047413]
[1736717945273,0.7641,3271.7,3271.4,2.13975]
[1736717945485,0.7641,3271.7,3271.6,0.07047413]
[1736717945683,0.7641,3271.7,3271.4,2.13975]
[1736717945883,0.7641,3271.7,3271.6,0.07047413]
[1736717946052,0.7641,3271.7,3271.4,2.13975]
[1736717946253,0.7641,3271.7,3271.6,0.07047413]
[1736717946454,0.7779,3271.9,3271.4,2.46339385]
[1736717946663,0.7779,3271.9,3271.6,0.07047413]
[1736717946874,0.7779,3272.3,3271.7,2.13955]
[1736717947148,0.03116321,3272.2,3271.7,2.21002413]
[1736717947846,0.7779,3272.3,3271.8,2.13947]
[1736717948193,1.0168,3272.6,3271.8,0.22100241]
[1736717948397,0.03116321,3272.5,3271.9,0.07137636]
[1736717948692,0.03116321,3272.5,3271.7,0.8195]
[1736717948843,0.03116321,3272.5,3272.0,0.07137636]
[1736717949048,0.03116321,3272.5,3271.9,2.13942]
[1736717949278,0.03116321,3272.5,3272.1,0.07137636]
[1736717949488,0.03116321,3272.5,3271.9,2.13942]
[1736717949790,0.03116321,3272.5,3272.2,0.07095343]
[1736717950089,0.03116321,3272.5,3272.3,0.07095343]
[1736717950496,0.8008,3272.6,3272.0,0.03056034]
[1736717950832,0.8008,3272.6,3271.8,2.16999918]
[1736717950983,0.8008,3272.6,3272.2,2.13921]
[1736717951188,0.8083,3272.9,3272.3,1.08570288]
[1736717951521,0.03116321,3272.8,3272.3,3.01089188]
[1736717951883,0.8008,3272.9,3272.3,0.87178188]
[1736717952225,0.83196321,3273.1,3272.6,2.13896]
[1736717952583,0.8008,3273.1,3272.7,0.07068188]
[1736717953014,1.0168,3273.4,3272.8,2.13883]
[1736717953194,0.03116321,3273.3,3272.9,0.07036249]
[1736717956841,0.03116321,3273.3,3272.6,2.13894]
[1736717957000,0.03116321,3273.3,3272.7,0.07036249]
[1736717957203,0.03116321,3273.3,3272.7,0.1009147]
[1736717957513,0.8008,3273.4,3272.7,0.1009147]
[1736717958339,0.03116321,3273.3,3272.7,0.1009147]
[1736717958539,0.03116321,3273.3,3272.7,0.32490017]
[1736717958764,0.8008,3273.4,3272.8,2.91714]
[1736717958961,0.8008,3273.4,3272.8,0.8088522]
[1736717959166,0.8008,3273.4,3272.9,2.20841979]
[1736717959634,0.8008,3273.4,3272.9,2.23896975]
[1736717959869,0.8008,3273.4,3272.9,2.20841979]
[1736717960079,0.8008,3273.4,3272.9,2.50709177]
[1736717960286,0.78246321,3273.8,3273.1,2.13861]
[1736717960774,0.78246321,3273.8,3273.2,0.09996031]
[1736717961750,0.7513,3273.8,3273.3,0.7783]
[1736717962163,0.7513,3273.8,3273.4,0.06922873]
[1736717964392,0.0075,3274.2,3273.6,2.13826]
[1736717964571,0.0075,3274.2,3273.4,0.39838218]
[1736717964572,0.0075,3274.4,3273.7,2.13824]
[1736717964884,0.03116321,3274.8,3273.9,0.8046]
[1736717965035,0.03116321,3274.8,3274.1,2.13798]
[1736717965241,0.8248,3275.0,3274.2,0.28020131]
[1736717965242,0.03116321,3274.9,3274.2,0.28020131]
[1736717965455,0.015,3274.8,3274.2,0.06640331]
[1736717966379,0.03116321,3274.9,3274.2,2.20431331]
[1736717966549,0.8248,3275.0,3274.5,0.8046]
[1736717966756,0.8248,3275.2,3274.6,2.16818629]
[1736717967057,0.8248,3275.2,3274.6,2.2035108]
[1736717967058,0.03116321,3275.1,3274.6,2.2035108]
[1736717967402,0.03116321,3275.1,3274.6,2.50432188]
[1736717967579,0.8248,3275.2,3274.6,2.50432188]
[1736717967782,0.03116321,3275.1,3274.6,2.50432188]
[1736717967989,0.03116321,3275.1,3274.6,0.36667188]
[1736717968195,0.565,3275.0,3274.6,0.0658608]
[1736717968367,0.015,3274.8,3274.6,0.0658608]
[1736717968568,0.015,3274.8,3274.2,0.7919]
[1736717968807,0.015,3274.8,3274.7,0.06435311]
[1736717969126,0.015,3274.8,3274.2,0.7919]
[1736717969500,0.015,3274.8,3274.3,0.06431324]
[1736717972019,0.03116321,3274.9,3274.3,0.06431324]
[1736717972167,0.03116321,3275.0,3274.3,0.06431324]
[1736717972367,0.03116321,3275.0,3274.4,2.13779]
[1736717972568,0.03116321,3275.0,3274.4,2.44024415]
[1736717972920,0.03116321,3275.0,3274.5,0.06222851]
[1736717973253,0.03116321,3275.0,3274.2,2.92981]
[1736717973254,0.8087,3274.9,3274.2,2.13791]
[1736717973422,0.03116321,3274.8,3274.3,0.06222034]
[1736717982554,0.7763,3274.6,3274.3,0.06222034]
[1736717982759,0.03116321,3274.5,3274.3,0.06222034]
[1736717982955,0.03116321,3274.5,3273.8,0.59783588]
[1736717982956,0.80746321,3274.6,3273.9,0.0305419]
[1736717983190,0.216,3274.7,3274.4,0.06222034]
[1736717983397,0.216,3274.7,3274.2,0.8251]
[1736717983398,0.216,3274.7,3274.3,2.13785]
[1736717983700,0.216,3274.7,3274.4,2.13778]
[1736717984002,0.216,3274.7,3274.4,2.20022346]
[1736717984414,0.015,3275.2,3274.6,2.13765]
[1736717984579,0.015,3275.2,3274.5,0.8251]
[1736717984914,0.015,3275.2,3274.5,2.96282]
[1736717985059,0.015,3275.2,3274.6,0.06245143]
[1736717986803,0.7763,3275.3,3274.7,2.16808581]
[1736717986998,0.7763,3275.3,3274.8,0.22305372]
[1736717987199,0.03116321,3275.2,3274.7,2.13755]
[1736717987371,0.03116321,3275.2,3274.9,0.06245143]
[1736717987579,0.03116321,3275.2,3274.7,2.13755]
[1736717987779,0.03116321,3275.2,3275.0,0.06245143]
[1736717988018,0.03116321,3275.2,3274.7,2.13755]
[1736717988309,0.7763,3275.3,3274.8,0.213755]
[1736717988606,0.7763,3275.3,3274.8,0.27620643]
[1736717989205,0.015,3275.4,3274.9,2.13746]
[1736717989700,0.015,3275.4,3275.0,0.06213273]
[1736717990478,0.03116321,3275.5,3275.0,0.06213273]
[1736717990707,0.03116321,3275.4,3275.0,0.06213273]
[1736717991086,0.03116321,3275.4,3274.7,2.13757]
[1736717991407,0.015,3275.3,3275.1,0.06210087]
[1736717991582,0.7763,3275.2,3274.6,2.13766]
[1736717991763,0.03116321,3275.1,3274.6,2.13766]
[1736717992622,0.7763,3275.2,3274.6,2.16819466]
[1736717992773,0.03116321,3275.1,3274.6,2.13766]
[1736717992975,0.03116321,3275.1,3274.7,0.06210087]
[1736717993968,0.7763,3275.2,3274.7,2.19969087]
[1736717994714,0.03116321,3275.1,3274.7,0.06210087]